fUST/lending_fUST_20240906
["ID","MTS","AMOUNT","RATE_DAILY","PERIOD"]
[337334627,1725609059923,-494.043601,0.00020256,2]
[337334628,1725609059933,-151.0,0.00020256,2]
[337334629,1725609059942,-494.043601,0.00020256,2]
[337334630,1725609059953,-151.0,0.00020256,2]
[337334631,1725609059963,-2938.483127,0.00020256,2]
[337334632,1725609059974,-2938.483127,0.00020256,2]
[337334633,1725609059984,-187.877231,0.00020256,2]
[337334634,1725609059994,-151.0,0.00020256,2]
[337334635,1725609060004,-187.877231,0.00020256,2]
[337334636,1725609060013,-453.570122,0.00020256,2]
[337334637,1725609060023,-3122.398957,0.00020256,2]
[337334638,1725609060033,-453.570122,0.00020256,2]
[337334639,1725609060043,-3122.398957,0.00020256,2]
[337334640,1725609060054,-693.249848,0.00020256,2]
[337334641,1725609060063,-693.249848,0.00020256,2]
[337334642,1725609060073,-182.571913,0.00020256,2]
[337334643,1725609060082,-182.571913,0.00020256,2]
[337334644,1725609060092,-1955.500043,0.00020256,2]
[337334645,1725609060101,-1955.500043,0.00020256,2]
[337334646,1725609060111,-151.0,0.00020256,2]
[337334647,1725609060121,-203.595683,0.00020256,2]
[337334648,1725609060131,-151.0,0.00020256,2]
[337334649,1725609060140,-151.0,0.00020256,2]
[337334650,1725609060150,-1100.742901,0.00020256,2]
[337334651,1725609060160,-1100.742901,0.00020256,2]
[337334652,1725609060170,-526.81,0.00020257,2]
[337334653,1725609060181,-500.0,0.00020257,2]
[337334654,1725609060190,-1365.94,0.00020257,2]
[337334655,1725609060200,-613.97850125,0.00020257,2]
[337334656,1725609060209,-1589.93,0.00020257,2]
[337334657,1725609060219,-900.09,0.00020257,2]
[337334658,1725609060229,-500.0,0.00020257,2]
[337334659,1725609060239,-500.0,0.00020257,2]
[337334660,1725609060249,-500.0,0.00020257,2]
[337334661,1725609060259,-500.0,0.00020257,2]
[337334662,1725609060268,-283.48305676,0.00020257,2]
[337334663,1725609060278,-500.0,0.00020257,2]
[337334664,1725609060288,-1129.05,0.00020257,2]
[337334665,1725609060298,-519.49823112,0.00020257,2]
[337334666,1725609060311,-1666.46,0.00020257,2]
[337334667,1725609060323,-500.0,0.00020257,2]
[337334668,1725609060333,-500.0,0.00020257,2]
[337334669,1725609060343,-500.0,0.00020257,2]
[337334670,1725609060352,-501.63,0.00020257,2]
[337334671,1725609060363,-500.0,0.00020257,2]
[337334672,1725609060373,-996.26,0.00020257,2]
[337334673,1725609060382,-500.0,0.00020257,2]
[337334674,1725609060391,-500.0,0.00020257,2]
[337334675,1725609060404,-500.0,0.00020257,2]
[337334676,1725609060414,-500.0,0.00020257,2]
[337334677,1725609060425,-1825.86,0.00020257,2]
[337334678,1725609060434,-590.59476938,0.00020257,2]
[337334679,1725609060444,-500.0,0.00020257,2]
[337334680,1725609060454,-500.0,0.00020257,2]
[337334681,1725609060464,-500.0,0.00020257,2]
[337334682,1725609060474,-500.0,0.00020257,2]
[337334683,1725609060484,-648.44484412,0.00020257,2]
[337334684,1725609060495,-500.0,0.00020257,2]
[337334685,1725609060505,-500.0,0.00020257,2]
[337334686,1725609060515,-500.0,0.00020257,2]
[337334687,1725609060525,-500.0,0.00020257,2]
[337334688,1725609060534,-500.0,0.00020257,2]
[337334689,1725609060544,-500.0,0.00020257,2]
[337334690,1725609060556,-539.93606991,0.00020257,2]
[337334691,1725609060565,-500.0,0.00020257,2]
[337334692,1725609060575,-500.0,0.00020257,2]
[337334693,1725609060584,-500.0,0.00020257,2]
[337334694,1725609060594,-553.44,0.00020257,2]
[337334695,1725609060603,-1079.54,0.00020257,2]
[337334696,1725609060614,-500.0,0.00020257,2]
[337334697,1725609060623,-463.55958975,0.00020257,2]
[337334698,1725609060633,-500.0,0.00020257,2]
[337334699,1725609060642,-740.7,0.00020257,2]
[337334700,1725609060652,-500.0,0.00020257,2]
[337334701,1725609060662,-352.90321033,0.00020257,2]
[337334702,1725609060672,-500.0,0.00020257,2]
[337334703,1725609060681,-500.0,0.00020257,2]
[337334704,1725609060690,-505.83141265,0.00020257,2]
[337334705,1725609060699,-500.0,0.00020257,2]
[337334706,1725609060709,-500.0,0.00020257,2]
[337334707,1725609060720,-500.0,0.00020257,2]
[337334708,1725609060730,-500.0,0.00020257,2]
[337334709,1725609060739,-13.04445721,0.00020257,2]
[337334710,1725609061502,-1285.31,0.00019941,2]
[337334711,1725609061513,-1285.31,0.00019941,2]
[337334712,1725609061524,-1285.31,0.00019941,2]
[337334713,1725609061534,-1285.31,0.00019941,2]
[337334714,1725609061544,-1285.31,0.00019941,2]
[337334715,1725609061557,-1285.31,0.00019941,2]
[337334716,1725609061567,-1285.31,0.00019941,2]
[337334717,1725609061576,-486.95554279,0.00020257,2]
[337334718,1725609061585,-500.0,0.00020257,2]
[337334719,1725609061595,-500.0,0.00020257,2]
[337334720,1725609061604,-500.0,0.00020257,2]
[337334721,1725609061615,-487.89225779,0.00020257,2]
[337334722,1725609061625,-500.0,0.00020257,2]
[337334723,1725609061634,-960.33,0.00020257,2]
[337334724,1725609061644,-500.0,0.00020257,2]
[337334725,1725609061654,-500.0,0.00020257,2]
[337334726,1725609061663,-500.0,0.00020257,2]
[337334727,1725609061673,-651.51,0.00020257,2]
[337334728,1725609061683,-500.0,0.00020257,2]
[337334729,1725609061693,-1075.73,0.00020257,2]
[337334730,1725609061703,-1192.96,0.00020257,2]
[337334731,1725609061715,-625.82532617,0.00020257,2]
[337334732,1725609061726,-500.0,0.00020257,2]
[337334733,1725609061738,-2007.33,0.00020257,2]
[337334734,1725609061748,-500.0,0.00020257,2]
[337334735,1725609061759,-549.29,0.00020257,2]
[337334736,1725609061769,-500.0,0.00020257,2]
[337334737,1725609061779,-1089.16,0.00020257,2]
[337334738,1725609061788,-500.0,0.00020257,2]
[337334739,1725609061800,-500.0,0.00020257,2]
[337334740,1725609061813,-500.0,0.00020257,2]
[337334741,1725609061822,-828.0,0.00020257,2]
[337334742,1725609061833,-500.0,0.00020257,2]
[337334743,1725609061843,-500.0,0.00020257,2]
[337334744,1725609061853,-500.0,0.00020257,2]
[337334745,1725609061863,-500.0,0.00020257,2]
[337334746,1725609061872,-500.0,0.00020257,2]
[337334747,1725609061883,-500.0,0.00020257,2]
[337334748,1725609061893,-500.0,0.00020257,2]
[337334749,1725609061903,-500.0,0.00020257,2]
[337334750,1725609061914,-500.0,0.00020257,2]
[337334751,1725609061924,-570.99599103,0.00020257,2]
[337334752,1725609061933,-500.0,0.00020257,2]
[337334753,1725609061945,-500.0,0.00020257,2]
[337334754,1725609061954,-500.0,0.00020257,2]
[337334755,1725609061965,-500.0,0.00020257,2]
[337334756,1725609061975,-500.0,0.00020257,2]
[337334757,1725609061985,-500.0,0.00020257,2]
[337334758,1725609061995,-513.18518072,0.00020257,2]
[337334759,1725609062006,-500.0,0.00020257,2]
[337334760,1725609062015,-500.0,0.00020257,2]
[337334761,1725609062025,-500.0,0.00020257,2]
[337334762,1725609062034,-500.0,0.00020257,2]
[337334763,1725609062045,-500.0,0.00020257,2]
[337334764,1725609062055,-500.0,0.00020257,2]
[337334765,1725609062069,-500.0,0.00020257,2]
[337334766,1725609062085,-500.0,0.00020257,2]
[337334767,1725609062095,-500.0,0.00020257,2]
[337334768,1725609062105,-500.0,0.00020257,2]
[337334769,1725609062114,-151.0,0.00020257,2]
[337334770,1725609062124,-500.0,0.00020257,2]
[337334771,1725609062133,-500.0,0.00020257,2]
[337334772,1725609062143,-500.0,0.00020257,2]
[337334773,1725609062153,-500.0,0.00020257,2]
[337334774,1725609062163,-500.0,0.00020257,2]
[337334775,1725609062173,-151.0,0.00020257,2]
[337334776,1725609062183,-224.270584,0.00020257,2]
[337334777,1725609062193,-504.14963447,0.00020257,2]
[337334778,1725609062202,-500.0,0.00020257,2]
[337334779,1725609062213,-151.0,0.00020257,2]
[337334780,1725609062222,-511.34273072,0.00020257,2]
[337334781,1725609062231,-224.270584,0.00020257,2]
[337334782,1725609062241,-947.72,0.00020257,2]
[337334783,1725609062250,-151.920499,0.00020257,2]
[337334784,1725609062259,-500.0,0.00020257,2]
[337334785,1725609062269,-500.0,0.00020257,2]
[337334786,1725609062277,-502.05916755,0.00020257,2]
[337334787,1725609062286,-151.0,0.00020257,2]
[337334788,1725609062296,-731.75,0.00020257,2]
[337334789,1725609062312,-151.0,0.00020257,2]
[337334790,1725609062322,-213.20068,0.00020257,2]
[337334791,1725609062334,-213.20068,0.00020257,2]
[337334792,1725609062343,-154.045856,0.00020257,2]
[337334793,1725609062353,-2315.311695,0.00020257,2]
[337334794,1725609062363,-2315.311695,0.00020257,2]
[337334795,1725609062373,-266.330469,0.00020257,2]
[337334796,1725609062383,-266.330469,0.00020257,2]
[337334797,1725609062394,-1794.437912,0.00020257,2]
[337334798,1725609062406,-1803.483243,0.00020257,2]
[337334799,1725609062415,-1803.483243,0.00020257,2]
[337334800,1725609062426,-166.876144,0.00020257,2]
[337334801,1725609062437,-166.876144,0.00020257,2]
[337334802,1725609062448,-200.79735035,0.00020273,2]
[337334803,1725609062457,-500.0,0.00020273,2]
[337334804,1725609062467,-158.74864569,0.00020273,2]
[337334805,1725609062478,-203.03803105,0.00020273,2]
[337334806,1725609062488,-500.0,0.00020273,2]
[337334807,1725609062497,-190.76931383,0.00020273,2]
[337334808,1725609062506,-255.27453202,0.00020273,2]
[337334809,1725609062516,-500.0,0.00020273,2]
[337334810,1725609062525,-500.0,0.00020273,2]
[337334811,1725609062536,-160.22557755,0.00020273,2]
[337334812,1725609062546,-500.0,0.00020273,2]
[337334813,1725609062557,-505.89821726,0.00020273,2]
[337334814,1725609062566,-501.55856227,0.00020273,2]
[337334815,1725609062576,-707.48138667,0.00020315,2]
[337334816,1725609062586,-28355.05643031,0.00020377,2]
[337334817,1725609062595,-500.0,0.00020488,2]
[337334818,1725609062605,-2104.94,0.00020488,2]
[337334819,1725609062615,-500.0,0.00020489,2]
[337334820,1725609062626,-500.0,0.00020489,2]
[337334821,1725609062636,-500.0,0.00020489,2]
[337334822,1725609062648,-500.0,0.00020489,2]
[337334823,1725609062657,-500.0,0.00020489,2]
[337334824,1725609062667,-500.0,0.00020489,2]
[337334825,1725609062677,-500.0,0.00020489,2]
[337334826,1725609062687,-500.0,0.00020489,2]
[337334827,1725609062697,-500.0,0.00020489,2]
[337334828,1725609062707,-500.0,0.00020489,2]
[337334829,1725609062717,-500.0,0.00020489,2]
[337334830,1725609062728,-500.0,0.00020489,2]
[337334831,1725609062738,-500.0,0.00020489,2]
[337334832,1725609062747,-500.0,0.00020489,2]
[337334833,1725609062759,-500.0,0.00020489,2]
[337334834,1725609062769,-500.0,0.00020489,2]
[337334835,1725609062778,-504.80643826,0.00020489,2]
[337334836,1725609062787,-500.0,0.00020489,2]
[337334837,1725609062797,-602.16,0.00020489,2]
[337334838,1725609062808,-400.7779427,0.00020489,2]
[337334839,1725609062818,-500.0,0.00020489,2]
[337334840,1725609062829,-500.0,0.00020489,2]
[337334841,1725609062839,-627.08028944,0.00020489,2]
[337334842,1725609062848,-500.0,0.00020489,2]
[337334843,1725609062859,-500.0,0.00020489,2]
[337334844,1725609062868,-500.0,0.00020489,2]
[337334845,1725609062877,-500.0,0.00020489,2]
[337334846,1725609062887,-500.0,0.00020489,2]
[337334847,1725609062897,-500.0,0.00020489,2]
[337334848,1725609062907,-500.0,0.00020489,2]
[337334849,1725609062916,-500.0,0.00020489,2]
[337334850,1725609062926,-500.0,0.00020489,2]
[337334851,1725609062936,-500.0,0.00020489,2]
[337334852,1725609062945,-500.0,0.00020489,2]
[337334853,1725609062954,-1248.82,0.00020489,2]
[337334854,1725609062964,-500.0,0.00020489,2]
[337334855,1725609062974,-500.0,0.00020489,2]
[337334856,1725609062983,-500.0,0.00020489,2]
[337334857,1725609062992,-500.0,0.00020489,2]
[337334858,1725609063002,-500.0,0.00020489,2]
[337334859,1725609063013,-1025.87,0.00020489,2]
[337334860,1725609063023,-1609.37,0.00020489,2]
[337334861,1725609063034,-500.0,0.00020489,2]
[337334862,1725609063044,-500.0,0.00020489,2]
[337334863,1725609063057,-5278.66,0.00020489,2]
[337334864,1725609063067,-2726.58,0.00020489,2]
[337334865,1725609063076,-1081.19,0.00020489,2]
[337334866,1725609063086,-500.0,0.00020489,2]
[337334867,1725609063096,-2214.63,0.00020489,2]
[337334868,1725609063106,-200.0,0.00020489,2]
[337334869,1725609063117,-500.0,0.00020489,2]
[337334870,1725609063126,-500.0,0.00020489,2]
[337334871,1725609063136,-500.0,0.00020489,2]
[337334872,1725609063146,-515.97,0.00020489,2]
[337334873,1725609063156,-500.0,0.00020489,2]
[337334874,1725609063166,-673.91,0.00020489,2]
[337334875,1725609063176,-1916.64,0.00020489,2]
[337334876,1725609063186,-7567.18,0.00020489,2]
[337334877,1725609063196,-500.0,0.00020489,2]
[337334878,1725609063207,-500.0,0.00020489,2]
[337334879,1725609063218,-2138.68,0.00020489,2]
[337334880,1725609063232,-500.0,0.00020489,2]
[337334881,1725609063242,-500.0,0.00020489,2]
[337334882,1725609063251,-500.0,0.00020489,2]
[337334883,1725609063260,-2163.74,0.00020489,2]
[337334884,1725609063270,-500.0,0.00020489,2]
[337334885,1725609063279,-154.53167066,0.00020489,2]
[337334886,1725609063288,-500.0,0.00020489,2]
[337334887,1725609063298,-500.0,0.00020489,2]
[337334888,1725609063311,-500.0,0.00020489,2]
[337334889,1725609063325,-2384.15,0.00020489,2]
[337334890,1725609063335,-500.0,0.00020489,2]
[337334891,1725609063345,-1332.97,0.00020489,2]
[337334892,1725609063354,-500.0,0.00020489,2]
[337334893,1725609063365,-1396.81,0.00020489,2]
[337334894,1725609063374,-1867.04,0.00020489,2]
[337334895,1725609063384,-502.58894953,0.00020489,2]
[337334896,1725609063394,-500.0,0.00020489,2]
[337334897,1725609063406,-500.0,0.00020489,2]
[337334898,1725609063416,-500.0,0.00020489,2]
[337334899,1725609063425,-500.0,0.00020489,2]
[337334900,1725609063435,-3381.51,0.00020489,2]
[337334901,1725609063444,-500.0,0.00020499,2]
[337334902,1725609063454,-500.0,0.00020499,2]
[337334903,1725609063463,-500.0,0.00020499,2]
[337334904,1725609063473,-500.0,0.00020499,2]
[337334905,1725609063483,-500.0,0.00020499,2]
[337334906,1725609063492,-2559.54,0.00020499,2]
[337334907,1725609063502,-2376.73,0.00020499,2]
[337334908,1725609063512,-1152.74,0.00020499,2]
[337334909,1725609063521,-181.4378267,0.00020499,2]
[337334910,1725609063531,-910.85,0.00020499,2]
[337334911,1725609063541,-500.0,0.00020499,2]
[337334912,1725609063550,-500.0,0.00020499,2]
[337334913,1725609063563,-229.47365011,0.00020499,2]
[337334914,1725609063572,-500.0,0.00020499,2]
[337334915,1725609063581,-739.17,0.00020499,2]
[337334916,1725609063590,-501.61689943,0.00020499,2]
[337334917,1725609063600,-500.0,0.00020499,2]
[337334918,1725609063610,-500.0,0.00020499,2]
[337334919,1725609063620,-500.0,0.00020499,2]
[337334920,1725609063629,-606.13798861,0.00020499,2]
[337334921,1725609063638,-500.0,0.00020499,2]
[337334922,1725609063648,-507.24744847,0.00020499,2]
[337334923,1725609063657,-500.0,0.00020499,2]
[337334924,1725609063667,-500.0,0.00020499,2]
[337334925,1725609063676,-500.0,0.00020499,2]
[337334926,1725609063686,-500.0,0.00020499,2]
[337334927,1725609063695,-500.0,0.00020499,2]
[337334928,1725609063705,-2366.75,0.00020499,2]
[337334929,1725609063714,-2472.65,0.00020499,2]
[337334930,1725609063724,-500.0,0.00020499,2]
[337334931,1725609063733,-613.65,0.00020499,2]
[337334932,1725609063743,-2669.67,0.00020499,2]
[337334933,1725609063752,-285.9983546,0.00020499,2]
[337334934,1725609063762,-1520.89,0.00020499,2]
[337334935,1725609063771,-1725.15,0.00020499,2]
[337334936,1725609063780,-500.0,0.00020499,2]
[337334937,1725609063790,-1608.1,0.00020499,2]
[337334938,1725609063799,-545.06,0.00020499,2]
[337334939,1725609063811,-2106.06,0.00020499,2]
[337334940,1725609063821,-500.0,0.00020499,2]
[337334941,1725609063830,-500.0,0.00020499,2]
[337334942,1725609063839,-1660.42,0.00020499,2]
[337334943,1725609063848,-23727.07,0.00020499,2]
[337334944,1725609063858,-1433.17,0.00020499,2]
[337334945,1725609063867,-3359.97,0.00020499,2]
[337334946,1725609063877,-500.0,0.00020499,2]
[337334947,1725609063887,-2979.47,0.00020499,2]
[337334948,1725609063896,-3384.66,0.00020499,2]
[337334949,1725609063906,-1441.83,0.00020499,2]
[337334950,1725609063915,-522.13,0.00020499,2]
[337334951,1725609063925,-500.0,0.00020499,2]
[337334952,1725609063934,-500.0,0.00020499,2]
[337334953,1725609063944,-2714.43,0.00020499,2]
[337334954,1725609063953,-500.0,0.00020499,2]
[337334955,1725609063962,-500.0,0.00020499,2]
[337334956,1725609063972,-2153.93,0.00020499,2]
[337334957,1725609063981,-500.0,0.00020499,2]
[337334958,1725609063991,-546.03,0.00020499,2]
[337334959,1725609064000,-1318.69,0.00020499,2]
[337334960,1725609064010,-3625.89,0.00020499,2]
[337334961,1725609064020,-500.0,0.00020499,2]
[337334962,1725609064029,-3860.31,0.00020499,2]
[337334963,1725609064038,-500.0,0.00020499,2]
[337334964,1725609064048,-518.82924043,0.00020499,2]
[337334965,1725609064058,-500.0,0.00020499,2]
[337334966,1725609064068,-500.0,0.00020499,2]
[337334967,1725609064078,-500.0,0.00020499,2]
[337334968,1725609064087,-500.0,0.00020499,2]
[337334969,1725609064096,-1834.01,0.00020499,2]
[337334970,1725609064106,-500.0,0.00020499,2]
[337334971,1725609064116,-2029.8,0.00020499,2]
[337334972,1725609064126,-1153.86,0.00020499,2]
[337334973,1725609064135,-3466.27,0.00020499,2]
[337334974,1725609064145,-524.49,0.00020499,2]
[337334975,1725609064155,-500.0,0.00020499,2]
[337334976,1725609064313,-500.0,0.00020499,2]
[337334977,1725609064324,-1327.05,0.00020499,2]
[337334978,1725609064336,-784.27,0.00020499,2]
[337334979,1725609064347,-2610.45,0.00020499,2]
[337334980,1725609064357,-500.0,0.00020506,2]
[337334981,1725609064366,-500.0,0.00020506,2]
[337334982,1725609064377,-1104.78,0.00020506,2]
[337334983,1725609064386,-500.0,0.00020506,2]
[337334984,1725609064396,-500.0,0.00020506,2]
[337334985,1725609064405,-500.0,0.00020506,2]
[337334986,1725609064415,-3043.2,0.00020506,2]
[337334987,1725609064424,-654.5,0.00020506,2]
[337334988,1725609064433,-500.0,0.00020506,2]
[337334989,1725609064443,-2620.2,0.00020506,2]
[337334990,1725609064452,-500.0,0.00020506,2]
[337334991,1725609064462,-500.0,0.00020506,2]
[337334992,1725609064472,-1698.59,0.00020506,2]
[337334993,1725609064482,-2084.64,0.00020506,2]
[337334994,1725609064491,-1038.27,0.00020506,2]
[337334995,1725609064501,-3706.21,0.00020506,2]
[337334996,1725609064510,-3707.68,0.00020506,2]
[337334997,1725609064520,-993.18,0.00020506,2]
[337334998,1725609064530,-500.0,0.00020506,2]
[337334999,1725609064539,-3539.11,0.00020506,2]
[337335000,1725609064550,-677.69,0.00020506,2]
[337335001,1725609064562,-500.0,0.00020506,2]
[337335002,1725609064571,-3088.96,0.00020506,2]
[337335003,1725609064581,-1148.66,0.00020506,2]
[337335004,1725609064590,-500.0,0.00020506,2]
[337335005,1725609064599,-650.34,0.00020506,2]
[337335006,1725609064609,-47591.09,0.00020506,2]
[337335007,1725609064618,-500.0,0.00020506,2]
[337335008,1725609064627,-500.0,0.00020506,2]
[337335009,1725609064636,-720.39,0.00020506,2]
[337335010,1725609064645,-613.26944936,0.00020506,2]
[337335011,1725609064654,-500.0,0.00020506,2]
[337335012,1725609064663,-500.0,0.00020506,2]
[337335013,1725609064672,-977.89,0.00020506,2]
[337335014,1725609064681,-663.62,0.00020506,2]
[337335015,1725609064690,-736.66,0.00020506,2]
[337335016,1725609064699,-2669.91,0.00020506,2]
[337335017,1725609064709,-1000.0,0.00020506,2]
[337335018,1725609064718,-3261.27,0.00020506,2]
[337335019,1725609064728,-2916.84,0.00020506,2]
[337335020,1725609064737,-500.0,0.00020506,2]
[337335021,1725609064746,-500.0,0.00020506,2]
[337335022,1725609064755,-3005.03,0.00020506,2]
[337335023,1725609064764,-1905.12,0.00020506,2]
[337335024,1725609064773,-500.0,0.00020506,2]
[337335025,1725609064782,-500.0,0.00020506,2]
[337335026,1725609064791,-500.0,0.0002051,2]
[337335027,1725609064800,-500.0,0.0002051,2]
[337335028,1725609064813,-500.0,0.0002051,2]
[337335029,1725609064823,-500.0,0.0002051,2]
[337335030,1725609064832,-500.0,0.0002051,2]
[337335031,1725609064840,-500.0,0.0002051,2]
[337335032,1725609064850,-500.0,0.0002051,2]
[337335033,1725609064860,-500.0,0.0002051,2]
[337335034,1725609064870,-471.89571295,0.0002051,2]
[337335035,1725609064879,-673.97,0.0002051,2]
[337335036,1725609064889,-500.0,0.0002051,2]
[337335037,1725609064899,-500.0,0.0002051,2]
[337335038,1725609064909,-504.79993804,0.0002051,2]
[337335039,1725609064918,-500.0,0.0002051,2]
[337335040,1725609064927,-500.0,0.0002051,2]
[337335041,1725609064937,-1012.3,0.0002051,2]
[337335042,1725609064946,-500.0,0.0002051,2]
[337335043,1725609064956,-500.0,0.0002051,2]
[337335044,1725609064965,-497.89874327,0.0002051,2]
[337335045,1725609064974,-500.0,0.0002051,2]
[337335046,1725609064983,-500.0,0.0002051,2]
[337335047,1725609064993,-501.65447602,0.0002051,2]
[337335048,1725609065002,-502.2282025,0.0002051,2]
[337335049,1725609065012,-500.0,0.0002051,2]
[337335050,1725609065021,-500.0,0.0002051,2]
[337335051,1725609065031,-500.0,0.0002051,2]
[337335052,1725609065040,-500.0,0.0002051,2]
[337335053,1725609065049,-500.0,0.0002051,2]
[337335054,1725609065061,-500.0,0.0002051,2]
[337335055,1725609065074,-575.04015626,0.0002051,2]
[337335056,1725609065083,-549.14,0.0002051,2]
[337335057,1725609065092,-500.0,0.0002051,2]
[337335058,1725609065101,-500.0,0.0002051,2]
[337335059,1725609065110,-500.0,0.0002051,2]
[337335060,1725609065120,-500.0,0.0002051,2]
[337335061,1725609065130,-591.17422105,0.0002051,2]
[337335062,1725609065139,-2706.59,0.0002051,2]
[337335063,1725609065148,-500.0,0.0002051,2]
[337335064,1725609065157,-509.56050521,0.0002051,2]
[337335065,1725609065166,-500.0,0.0002051,2]
[337335066,1725609065175,-514.03,0.0002051,2]
[337335067,1725609065184,-500.0,0.0002051,2]
[337335068,1725609065195,-500.0,0.0002051,2]
[337335069,1725609065204,-500.0,0.0002051,2]
[337335070,1725609065213,-500.0,0.0002051,2]
[337335071,1725609065222,-500.0,0.0002051,2]
[337335072,1725609065231,-500.0,0.0002051,2]
[337335073,1725609065240,-500.0,0.0002051,2]
[337335074,1725609065249,-538.45793782,0.0002051,2]
[337335075,1725609065259,-500.0,0.0002051,2]
[337335076,1725609065268,-1483.39,0.0002051,2]
[337335077,1725609065277,-312.22824934,0.0002051,2]
[337335078,1725609065286,-500.0,0.0002051,2]
[337335079,1725609065295,-194.333393,0.0002051,2]
[337335080,1725609065305,-511.06960164,0.0002051,2]
[337335081,1725609065321,-500.0,0.0002051,2]
[337335082,1725609065333,-500.0,0.0002051,2]
[337335083,1725609065341,-501.29728799,0.0002051,2]
[337335084,1725609065351,-500.0,0.0002051,2]
[337335085,1725609065360,-229.65031329,0.0002051,2]
[337335086,1725609065368,-500.0,0.0002051,2]
[337335087,1725609065378,-309.85047908,0.0002051,2]
[337335088,1725609065387,-917.96,0.0002051,2]
[337335089,1725609065396,-500.0,0.0002051,2]
[337335090,1725609065407,-500.0,0.0002051,2]
[337335091,1725609065416,-500.0,0.0002051,2]
[337335092,1725609065425,-500.0,0.0002051,2]
[337335093,1725609065434,-500.0,0.0002051,2]
[337335094,1725609065443,-557.14,0.0002051,2]
[337335095,1725609065452,-559.08059353,0.0002051,2]
[337335096,1725609065462,-500.0,0.0002051,2]
[337335097,1725609065470,-500.0,0.0002051,2]
[337335098,1725609065479,-500.0,0.0002051,2]
[337335099,1725609065488,-750.66,0.0002051,2]
[337335100,1725609065498,-500.0,0.0002051,2]
[337335101,1725609065507,-500.0,0.0002051,2]
[337335102,1725609065517,-500.0,0.0002051,2]
[337335103,1725609065526,-500.0,0.0002051,2]
[337335104,1725609065535,-500.0,0.0002051,2]
[337335105,1725609065544,-500.0,0.0002051,2]
[337335106,1725609065554,-421.95523997,0.0002051,2]
[337335107,1725609065565,-453.07159456,0.0002051,2]
[337335108,1725609065574,-500.0,0.0002051,2]
[337335109,1725609065583,-339.18703988,0.0002051,2]
[337335110,1725609065593,-848.07,0.0002051,2]
[337335111,1725609065602,-500.0,0.0002051,2]
[337335112,1725609065612,-500.0,0.0002051,2]
[337335113,1725609065621,-500.0,0.0002051,2]
[337335114,1725609065631,-500.0,0.0002051,2]
[337335115,1725609065641,-500.0,0.0002051,2]
[337335116,1725609065651,-500.0,0.0002051,2]
[337335117,1725609065660,-247.48463927,0.0002051,2]
[337335118,1725609065704,-252.51536073,0.0002051,2]
[337335119,1725609065713,-500.0,0.0002051,2]
[337335120,1725609065722,-500.0,0.0002051,2]
[337335121,1725609065732,-500.0,0.0002051,2]
[337335122,1725609065741,-500.0,0.0002051,2]
[337335123,1725609065750,-500.0,0.0002051,2]
[337335124,1725609065760,-601.7,0.0002051,2]
[337335125,1725609065770,-500.0,0.0002051,2]
[337335126,1725609065780,-517.22,0.0002051,2]